bitfinex-derivatives/quotes_ETHF0:USTF0_20240930
["timestamp","ask_amount","ask_price","bid_price","bid_amount"]
[1727701400739,0.7463,2637.0,2636.9,0.37921]
[1727701400934,0.3744,2637.0,2636.8,0.758]
[1727701401236,0.3744,2637.0,2636.8,1.13722]
[1727701401429,0.7536,2637.0,2636.8,1.13722]
[1727701401633,0.3744,2637.0,2636.8,1.13722]
[1727701401937,0.3744,2637.0,2636.8,1.13721]
[1727701402140,0.3744,2637.0,2636.8,0.758]
[1727701402339,0.37919,2637.1,2636.8,1.13721]
[1727701402537,0.77057,2637.2,2637.0,0.37919]
[1727701402738,3.58694,2637.4,2637.2,0.37916]
[1727701403041,3.58694,2637.4,2637.3,1.1533]
[1727701403233,3.2078,2637.4,2637.3,2.2433]
[1727701403438,3.2078,2637.4,2637.3,2.62245]
[1727701405940,3.58689,2637.7,2637.3,2.2433]
[1727701406133,3.2078,2637.7,2637.6,0.37911]
[1727701406439,3.58685,2638.0,2637.6,1.09]
[1727701406740,3.58685,2638.0,2637.9,0.37907]
[1727701407139,3.2078,2638.0,2637.9,5.26027]
[1727701407344,13.58076,2638.5,2637.9,10.8812]
[1727701407535,0.37899,2638.4,2638.3,2.74901]
[1727701407740,0.37899,2638.4,2638.3,2.37]
[1727701407935,0.37899,2638.4,2638.3,2.74901]
[1727701408240,13.58076,2638.5,2638.3,2.749]
[1727701408241,13.95975,2638.5,2638.3,2.749]
[1727701408442,13.95975,2638.5,2638.4,0.377]
[1727701408634,13.95975,2638.5,2638.4,0.7467]
[1727701410143,13.58076,2638.5,2638.4,0.7467]
[1727701410440,13.58076,2638.5,2638.4,1.12569]
[1727701410639,13.58076,2638.5,2638.4,4.91609]
[1727701411340,13.58076,2638.5,2638.4,10.91609]
[1727701412549,0.96149,2638.5,2638.4,10.91609]
[1727701412837,3.2078,2639.5,2639.2,0.37887]
[1727701413041,0.37885,2639.4,2639.3,0.4016]
[1727701413238,3.2078,2639.5,2639.4,0.37885]
[1727701413436,3.58664,2639.5,2639.3,4.1904]
[1727701413645,3.58664,2639.5,2639.3,4.56925]
[1727701413646,3.2078,2639.5,2639.3,4.56925]
[1727701414046,3.2078,2639.5,2639.3,0.4016]
[1727701414242,3.2078,2639.5,2639.3,4.1904]
[1727701414442,3.2078,2639.5,2639.4,6.53765]
[1727701414745,3.2078,2639.5,2639.4,4.16765]
[1727701415342,3.2078,2639.5,2639.4,3.7888]
[1727701415545,3.58664,2639.5,2639.3,0.4016]
[1727701415741,3.2078,2639.5,2639.3,0.4016]
[1727701415938,0.37885,2639.4,2639.3,0.4016]
[1727701417634,3.2078,2639.5,2639.0,0.7619]
[1727701417836,3.2078,2639.5,2639.0,0.383]
[1727701418238,0.37889,2639.2,2639.0,0.383]
[1727701418434,0.37889,2639.2,2639.0,0.7619]
[1727701418838,0.37889,2639.2,2639.0,0.383]
[1727701419037,0.37889,2639.1,2639.0,0.383]
[1727701419243,3.2078,2639.2,2638.9,0.4017]
[1727701419439,0.77671,2639.1,2638.9,0.4017]
[1727701419635,3.2078,2639.2,2638.9,0.4017]
[1727701419841,41.17889,2639.1,2638.9,0.78062]
[1727701420133,41.1789,2639.1,2638.9,0.78062]
[1727701420340,3.58668,2639.2,2639.0,0.37891]
[1727701420541,3.58668,2639.2,2638.9,0.4017]
[1727701420542,3.2078,2639.2,2638.9,0.4017]
[1727701420844,3.2078,2639.2,2639.0,0.37891]
[1727701420845,0.37888,2639.2,2639.0,0.37891]
[1727701421142,0.37888,2639.2,2639.0,0.76741]
[1727701421446,0.37888,2639.2,2639.0,4.1773]
[1727701421637,0.37888,2639.2,2639.0,4.55621]
[1727701422151,2.37,2639.3,2638.9,0.4017]
[1727701422337,0.37891,2639.0,2638.9,0.4017]
[1727701422744,0.37893,2638.9,2638.7,0.76774]
[1727701422950,0.37892,2639.0,2638.7,0.76774]
[1727701423138,0.37893,2638.9,2638.7,0.76774]
[1727701423541,2.37,2639.1,2638.5,3.2078]
[1727701423744,2.37,2639.1,2638.5,0.37897]
[1727701423745,0.7521,2638.8,2638.5,0.37897]
[1727701423941,0.7521,2638.8,2638.4,0.74758]
[1727701423942,0.37896,2638.7,2638.4,0.74758]
[1727701424243,0.37896,2638.7,2638.5,0.37897]
[1727701424637,0.37895,2638.7,2638.4,0.3686]
[1727701424841,0.37897,2638.6,2638.4,0.74759]
[1727701425046,0.7521,2638.8,2638.4,0.74758]
[1727701425242,0.37896,2638.7,2638.5,0.37898]
[1727701425445,0.37896,2638.7,2638.4,0.3686]
[1727701425446,0.7521,2638.8,2638.4,0.37899]
[1727701425648,0.37896,2638.7,2638.5,0.37898]
[1727701426044,0.7521,2638.8,2638.3,4.8884]
[1727701426346,0.7521,2638.8,2638.3,4.13]
[1727701426647,0.7521,2638.8,2638.4,0.37899]
[1727701426648,0.37897,2638.6,2638.4,0.37899]
[1727701427945,0.37899,2638.5,2638.3,0.379]
[1727701429746,0.37899,2638.5,2638.1,0.3898]
[1727701429941,0.3915,2638.6,2638.4,0.37899]
[1727701430142,0.37904,2638.1,2637.9,3.6042]
[1727701430341,0.37902,2638.3,2638.1,0.37903]
[1727701430547,0.37,2638.2,2638.1,0.37903]
[1727701431145,0.37,2638.2,2637.9,3.6042]
[1727701431345,0.37,2638.2,2638.1,0.37904]
[1727701431951,0.74903,2638.2,2638.0,0.37904]
[1727701432157,0.37,2638.2,2637.9,3.6042]
[1727701432460,0.37,2638.2,2638.0,0.37905]
[1727701432461,0.74903,2638.2,2638.0,0.37905]
[1727701432954,1.11453,2638.2,2638.0,0.37905]
[1727701433152,0.37905,2638.0,2637.9,3.2078]
[1727701433854,0.3829,2638.1,2637.9,3.58686]
[1727701434053,0.37905,2638.0,2637.9,3.58686]
[1727701434250,0.37905,2638.0,2637.9,3.2078]
[1727701435154,0.7355,2638.2,2638.1,0.37904]
[1727701435355,3.2078,2638.3,2638.2,0.37902]
[1727701435561,3.2078,2638.3,2638.1,0.37903]
[1727701435562,3.58682,2638.3,2638.1,0.37903]
[1727701435855,0.7881,2638.2,2638.1,0.37903]
[1727701438063,0.37904,2638.1,2637.7,0.37909]
[1727701438259,0.7881,2638.2,2637.7,0.37909]
[1727701438260,0.37905,2638.0,2637.7,0.37909]
[1727701438461,0.37904,2638.1,2637.9,0.37905]
[1727701438966,0.37904,2638.1,2637.6,3.2078]
[1727701439156,0.37904,2638.1,2638.0,0.37905]
[1727701439357,0.37904,2638.1,2637.7,0.94774]
[1727701439559,0.37904,2638.1,2638.0,0.37905]
[1727701440258,0.7881,2638.2,2638.0,0.37905]
[1727701440464,1.16712,2638.2,2638.1,0.37904]
[1727701440654,0.7881,2638.2,2638.1,0.37904]
[1727701441062,3.2078,2638.7,2638.1,12.1604]
[1727701441264,0.3722,2638.8,2638.7,0.37895]
[1727701442154,4.3858,2639.3,2638.8,0.94735]
[1727701442155,3.2078,2639.3,2638.8,0.94735]
[1727701442462,0.3722,2639.2,2639.1,0.37889]
[1727701442666,0.75108,2639.2,2639.1,0.37889]
[1727701443462,0.3722,2639.2,2639.1,0.37889]
[1727701443768,3.2078,2639.3,2639.2,0.37888]
[1727701443965,3.99086,2639.3,2639.2,0.37888]
[1727701444160,3.612,2639.3,2638.8,0.94735]
[1727701444466,3.99087,2639.3,2639.2,0.37888]
[1727701444766,0.37889,2639.2,2639.1,0.37889]
[1727701444963,0.3789,2639.1,2639.0,0.3789]
[1727701445157,4.55918,2639.3,2638.6,4.90221]
[1727701445359,0.37891,2639.0,2638.9,0.37891]
[1727701445558,0.37893,2638.9,2638.8,0.37893]
[1727701446078,0.37892,2639.0,2638.9,0.37892]
[1727701446367,0.94722,2639.2,2638.6,3.9548]
[1727701446572,0.94724,2639.1,2638.6,3.9548]
[1727701446761,0.37891,2639.0,2638.9,0.37891]
[1727701447459,0.37891,2639.1,2638.6,4.90221]
[1727701447658,3.2078,2639.3,2638.9,2.37]
[1727701447860,3.2078,2639.3,2639.2,0.37888]
[1727701448759,3.2078,2639.3,2639.2,0.75078]
[1727701449366,3.2078,2639.7,2639.2,4.1607]
[1727701449665,3.2078,2639.7,2639.6,0.37882]
[1727701450872,3.2078,2639.7,2639.2,3.5797]
[1727701451062,0.37884,2639.5,2639.4,0.37884]
[1727701451264,0.37883,2639.6,2639.5,0.37883]
[1727701451665,0.37885,2639.5,2639.3,0.37885]
[1727701451860,0.37885,2639.4,2639.3,0.37885]
[1727701452266,0.3959,2639.6,2639.3,0.37886]
[1727701452767,0.3888,2639.5,2639.2,0.3719]
[1727701452960,0.37886,2639.3,2639.2,0.3719]
[1727701453578,1.33591,2639.5,2639.1,0.3728]
[1727701453579,0.37888,2639.2,2639.1,0.3728]
[1727701453779,0.37892,2639.0,2638.8,0.75833]
[1727701453969,0.94723,2639.2,2638.8,0.3794]
[1727701454170,0.3789,2639.1,2638.9,0.37892]
[1727701454474,0.37888,2639.2,2639.0,0.37891]
[1727701454877,0.3789,2639.1,2638.9,0.37891]
[1727701455176,0.37889,2639.2,2639.0,0.3789]
[1727701455373,3.5966,2639.5,2638.8,0.3794]
[1727701455569,0.37889,2639.2,2639.0,0.3789]
[1727701456067,3.5966,2639.5,2638.8,0.3794]
[1727701456267,0.37889,2639.2,2639.0,0.3789]
[1727701456473,0.94718,2639.3,2638.8,0.3794]
[1727701456674,0.3789,2639.1,2638.9,0.37892]
[1727701456875,0.94718,2639.3,2638.9,0.37892]
[1727701457071,0.37891,2639.1,2638.9,0.37892]
[1727701457663,0.37891,2639.1,2638.9,0.37891]
[1727701457870,0.37892,2639.0,2638.8,0.75833]
[1727701458367,0.94721,2639.2,2638.8,0.75833]
[1727701458574,3.2078,2639.5,2638.8,2.7494]
[1727701458774,0.37887,2639.3,2638.8,2.7494]
[1727701458970,0.37888,2639.2,2639.0,0.3789]
[1727701459171,0.37888,2639.2,2639.1,0.3778]
[1727701461177,2.37,2639.4,2638.8,3.5872]
[1727701461383,0.37892,2638.9,2638.8,0.7572]
[1727701461577,0.3839,2639.1,2638.8,0.7572]
[1727701462078,0.37892,2638.9,2638.8,0.7572]
[1727701462777,0.37891,2639.0,2638.8,1.13614]
[1727701462980,0.37891,2639.0,2638.8,0.7572]
[1727701463275,0.3839,2639.1,2638.8,0.7572]
[1727701463481,0.37892,2638.9,2638.8,0.7572]
[1727701463678,0.7505,2639.1,2638.8,0.7572]
[1727701463879,0.37892,2638.9,2638.8,0.7572]
[1727701464583,0.37892,2639.0,2638.8,0.7572]
[1727701464983,0.37892,2639.0,2638.8,1.13614]
[1727701465281,0.7505,2639.1,2638.8,0.7572]
[1727701465480,0.37892,2638.9,2638.8,0.7572]
[1727701465677,0.94729,2639.0,2638.6,0.37896]
[1727701465872,0.37894,2638.8,2638.6,0.37896]
[1727701466382,0.37895,2638.7,2638.5,1.15667]
[1727701466580,0.37895,2638.7,2638.6,0.37896]
[1727701466782,0.37895,2638.7,2638.5,0.7777]
[1727701467084,0.37896,2638.6,2638.5,0.3893]
[1727701467975,0.3766,2638.7,2638.5,0.3893]
[1727701468176,0.75556,2638.7,2638.5,0.76827]
[1727701468680,0.3766,2638.7,2638.5,0.76827]
[1727701468883,0.37896,2638.6,2638.5,0.76827]
[1727701469078,0.37898,2638.5,2638.3,0.7674]
[1727701469981,0.37901,2638.3,2638.2,0.3809]
[1727701470285,0.94746,2638.5,2638.0,0.4033]
[1727701470286,0.94752,2638.4,2638.0,0.4033]
[1727701470483,0.37904,2638.1,2638.0,0.4033]
[1727701470675,0.74533,2638.2,2638.0,0.4033]
[1727701471187,0.3663,2638.2,2638.0,0.4033]
[1727701471581,0.37904,2638.1,2638.0,0.4033]
[1727701471881,0.3663,2638.2,2638.0,0.4033]
[1727701472089,4.54093,2638.6,2638.0,2.7733]
[1727701472383,0.3986,2638.5,2638.1,0.37903]
[1727701472588,0.37901,2638.4,2638.1,0.37903]
[1727701472778,0.37901,2638.4,2638.2,0.3886]
[1727701472980,0.37901,2638.4,2638.2,0.76762]
[1727701473183,0.37901,2638.4,2638.2,0.3886]
[1727701473390,0.3986,2638.5,2638.2,0.3886]
[1727701473588,0.379,2638.4,2638.2,0.76762]
[1727701474380,0.37901,2638.3,2638.2,0.3886]
[1727701474591,0.3986,2638.5,2638.2,0.3886]
[1727701474787,0.379,2638.4,2638.2,0.76762]
[1727701475190,0.37901,2638.3,2638.2,0.3886]
[1727701477389,0.3986,2638.5,2638.0,0.4033]
[1727701477594,0.37904,2638.1,2638.0,0.4033]
[1727701477790,1.3266,2638.2,2637.8,1.16358]
[1727701477990,0.37905,2638.0,2637.9,0.3962]
[1727701478485,0.37905,2638.0,2637.8,0.395]
[1727701478486,0.37907,2637.9,2637.8,0.395]
[1727701479794,0.37907,2637.9,2637.8,0.77408]
[1727701479998,0.74666,2638.0,2637.8,0.77408]
[1727701480592,0.3676,2638.0,2637.9,0.37907]
[1727701480792,0.77745,2638.1,2637.9,0.37907]
[1727701481891,0.77744,2638.1,2637.9,0.4031]
[1727701482090,0.77744,2638.1,2638.0,0.37905]
[1727701482289,3.58681,2638.3,2638.2,0.37902]
[1727701482890,3.2078,2638.3,2638.2,0.37902]
[1727701483092,3.58681,2638.3,2638.2,0.37902]
[1727701483693,3.58681,2638.3,2638.1,0.37903]
[1727701483694,0.37903,2638.2,2638.1,0.37903]
[1727701483890,3.58682,2638.3,2638.1,0.37903]
[1727701484089,0.37902,2638.2,2638.1,0.37903]
[1727701484299,3.58682,2638.3,2638.2,0.3843]
[1727701486605,3.58682,2638.3,2638.2,0.76332]
[1727701486803,3.58682,2638.3,2638.2,0.3843]
[1727701487099,0.37906,2638.0,2637.9,0.37906]
[1727701487694,0.94761,2638.1,2637.8,0.4033]
[1727701487899,0.37907,2637.9,2637.8,0.78237]
[1727701488797,0.37907,2637.9,2637.8,0.78238]
[1727701490199,0.37907,2637.9,2637.6,0.3962]
[1727701490200,0.37909,2637.7,2637.6,0.3962]
[1727701492201,0.37909,2637.8,2637.6,0.3962]
[1727701492400,3.6054,2638.0,2637.6,0.7753]
[1727701492610,0.37908,2637.8,2637.7,0.3842]
[1727701492805,3.6054,2638.0,2637.7,0.3842]
[1727701492999,0.37907,2637.9,2637.8,0.37908]
[1727701493205,0.3976,2638.0,2637.7,0.3842]
[1727701493507,0.37908,2637.8,2637.7,0.3842]
[1727701494407,4.55305,2638.0,2637.7,0.3842]
[1727701494706,0.37908,2637.8,2637.7,0.76329]
[1727701495404,0.37908,2637.8,2637.7,0.3842]
[1727701495801,0.37908,2637.8,2637.7,0.76329]
[1727701496201,0.37908,2637.8,2637.7,0.3842]
[1727701496403,5.5778,2638.3,2637.7,0.3842]
[1727701496705,0.37907,2637.9,2637.8,0.3661]
[1727701496901,0.37907,2637.9,2637.8,0.74518]
[1727701497703,0.37907,2637.9,2637.8,0.3661]
[1727701498309,0.37907,2637.9,2637.8,0.74518]
[1727701500206,0.37908,2637.8,2637.7,0.3842]
[1727701500410,0.76768,2637.8,2637.7,0.3842]
[1727701500816,0.76768,2637.8,2637.7,0.76329]
[1727701501014,0.94765,2638.0,2637.7,0.3842]
[1727701501214,0.37908,2637.9,2637.8,0.37907]
[1727701501808,2.7573,2638.1,2637.7,0.3842]
[1727701502111,0.37908,2637.8,2637.7,0.76329]
[1727701502311,0.94764,2638.0,2637.7,0.3842]
[1727701502509,0.37908,2637.8,2637.7,0.3842]
[1727701503317,0.37908,2637.8,2637.7,0.76329]
[1727701503616,0.37909,2637.7,2637.6,0.7753]
[1727701503911,0.76639,2637.7,2637.6,0.7753]
[1727701504515,0.76639,2637.7,2637.6,0.3962]
[1727701504719,0.76639,2637.7,2637.5,0.3852]
[1727701504720,0.37912,2637.6,2636.9,4.20187745]
[1727701504918,0.3873,2637.7,2637.3,1.1433]
[1727701505213,0.37907,2637.9,2637.4,2.37]
[1727701505414,0.37907,2637.9,2637.8,0.37908]
[1727701505622,0.37908,2637.9,2637.7,0.37909]
[1727701505911,0.37908,2637.9,2637.8,0.7464]
[1727701506917,5.5778,2638.3,2637.8,0.7464]
[1727701507119,3.2078,2638.3,2637.9,2.7362]
[1727701507318,0.37903,2638.2,2638.1,0.37903]
[1727701507517,3.58681,2638.3,2638.1,0.37903]
[1727701508019,3.2078,2638.3,2638.2,0.77862]
[1727701508216,3.6081,2638.7,2638.2,0.3996]
[1727701508413,3.6081,2638.7,2638.3,0.3852]
[1727701508718,3.98705,2638.7,2638.5,0.37897]
[1727701509110,3.98705,2638.7,2638.6,0.3996]
[1727701509511,3.6081,2638.7,2638.6,0.3996]
[1727701510119,3.2078,2638.7,2638.6,0.3996]
[1727701510418,3.2078,2638.7,2638.6,0.77856]
[1727701511619,3.58675,2638.7,2638.6,0.3996]
[1727701511817,5.5778,2638.7,2638.3,0.3852]
[1727701512119,0.37899,2638.4,2638.3,0.3852]
[1727701512425,0.37899,2638.5,2638.3,0.76421]
[1727701513822,0.3776,2638.6,2638.3,0.3852]
[1727701514015,1.72924,2638.9,2638.6,0.37896]
[1727701514016,0.37894,2638.8,2638.6,0.37896]
[1727701514222,0.37894,2638.8,2638.7,0.76435]
[1727701515119,0.37894,2638.8,2638.7,0.3854]
[1727701515816,0.37894,2638.8,2638.7,0.76435]
[1727701516024,3.2078,2639.0,2638.7,0.3854]
[1727701516221,3.58672,2639.0,2638.9,0.37892]
[1727701517127,0.37892,2638.9,2638.8,0.7378]
[1727701517332,0.37892,2638.9,2638.8,1.11674]
[1727701517523,0.37892,2638.9,2638.8,0.3718]
[1727701517722,0.37892,2638.9,2638.8,0.75074]
[1727701518530,3.2078,2639.0,2638.7,0.76434]
[1727701518841,0.37894,2638.8,2638.7,0.76434]
[1727701519836,3.2078,2639.0,2638.8,0.37893]
[1727701519837,0.37893,2638.9,2638.8,0.37893]
[1727701520133,0.37893,2638.9,2638.7,0.3854]
[1727701520134,0.37894,2638.8,2638.7,0.3854]
[1727701520321,6.5251,2639.0,2638.6,0.74395]
[1727701520322,0.37895,2638.7,2638.6,0.74395]
[1727701520522,0.76035,2638.7,2638.6,0.74395]
[1727701521136,0.76035,2638.7,2638.6,0.37895]
[1727701522321,0.37896,2638.6,2638.5,0.74428]
[1727701522936,0.37896,2638.6,2638.5,0.3653]
[1727701523333,0.37896,2638.6,2638.5,0.74428]
[1727701523736,0.782,2638.7,2638.4,0.76049]
[1727701523737,0.37898,2638.5,2638.4,0.76049]
[1727701524033,0.37898,2638.5,2638.4,0.37899]
[1727701524830,1.72941,2638.7,2638.2,0.3746]
[1727701525131,0.37897,2638.6,2638.5,0.37897]
[1727701525326,0.782,2638.7,2638.2,0.3746]
[1727701525327,0.37898,2638.5,2638.4,0.37898]
[1727701525526,0.37897,2638.6,2638.5,0.37897]
[1727701526932,0.37902,2638.2,2638.1,0.3829]
[1727701527139,0.37904,2638.1,2638.0,0.378]
[1727701527331,3.31753,2638.3,2637.9,0.37906]
[1727701527332,0.37905,2638.0,2637.9,0.37906]
[1727701527634,0.94756,2638.2,2637.8,0.4014]
[1727701527635,0.37907,2637.9,2637.8,0.4014]
[1727701528732,0.37907,2637.9,2637.8,0.78048]
[1727701528937,0.37906,2638.0,2637.8,0.78048]
[1727701529142,0.37907,2637.9,2637.8,0.78048]
[1727701529930,0.37906,2638.0,2637.8,0.78048]
[1727701530636,0.3791,2637.7,2637.5,0.37911]
[1727701530838,2.37,2637.7,2637.4,0.7764]
[1727701531030,0.37912,2637.5,2637.4,0.7764]
[1727701532037,1.14011,2637.6,2637.4,1.15553]
[1727701532227,0.37914,2637.4,2637.2,0.37916]
[1727701532642,0.37914,2637.4,2637.1,3.5772]
[1727701532826,0.37914,2637.4,2637.2,0.37915]
[1727701533030,0.37914,2637.4,2637.3,0.37915]
[1727701533337,0.761,2637.6,2637.1,3.5772]
[1727701533540,0.37914,2637.4,2637.1,3.5772]
[1727701533733,0.37914,2637.4,2637.2,0.37917]
[1727701533932,0.37914,2637.4,2637.3,0.37915]
[1727701534134,0.761,2637.6,2637.3,0.37915]
[1727701534440,0.37913,2637.5,2637.3,0.37915]
[1727701536240,0.37914,2637.4,2637.3,0.37915]
[1727701536538,0.37914,2637.4,2637.1,3.5772]
[1727701536539,0.37914,2637.4,2637.2,0.37916]
[1727701536943,0.37914,2637.4,2637.1,3.5772]
[1727701537243,0.37914,2637.4,2637.3,0.37915]
[1727701537437,0.37914,2637.4,2637.1,3.5772]
[1727701537639,0.37914,2637.4,2637.3,0.37915]
[1727701539637,0.37914,2637.4,2637.2,0.37917]
[1727701539638,0.37916,2637.3,2637.2,0.37917]
[1727701541746,0.37915,2637.3,2637.2,0.37917]
[1727701542645,0.37915,2637.3,2637.1,0.3694]
[1727701542845,0.402,2637.2,2637.1,0.74857]
[1727701543636,0.78117,2637.2,2637.1,0.74857]
[1727701544241,0.402,2637.2,2637.1,0.74857]
[1727701544644,0.78117,2637.2,2637.1,0.3694]
[1727701544839,0.37918,2637.1,2637.0,0.3866]
[1727701545041,0.37918,2637.1,2636.8,0.365]
[1727701545042,0.37921,2636.9,2636.8,0.365]
[1727701546741,0.37922,2636.8,2636.7,0.398]
[1727701546950,0.37922,2636.8,2636.5,0.74426]
[1727701546951,0.37925,2636.6,2636.5,0.74426]
[1727701547549,2.37,2636.7,2636.6,0.37925]
[1727701547745,3.5974,2636.8,2636.5,0.365]
[1727701547958,3.97663,2636.8,2636.6,0.37924]
[1727701548254,3.2078,2636.8,2636.7,0.37924]
[1727701548752,3.2078,2636.8,2636.5,0.365]
[1727701548957,0.37925,2636.6,2636.5,0.365]
[1727701549752,0.74905,2636.6,2636.5,0.365]
[1727701550157,0.74905,2636.6,2636.5,0.74427]
[1727701550345,0.74905,2636.6,2636.5,0.365]
[1727701550548,0.37928,2636.4,2636.3,0.398]
[1727701551169,2.37,2636.5,2636.1,0.7966]
[1727701551170,0.3793,2636.3,2636.1,0.7966]
[1727701551348,0.3793,2636.3,2636.2,0.77941]
[1727701551546,3.92828,2636.5,2636.3,0.37928]
[1727701551851,3.549,2636.5,2636.2,0.7794]
[1727701552056,0.3793,2636.3,2636.2,0.77941]
[1727701552854,0.37929,2636.4,2636.3,0.37929]
[1727701553050,0.3793,2636.3,2636.2,0.77941]
[1727701553664,0.37928,2636.4,2636.3,0.3793]
[1727701553845,0.3793,2636.3,2636.2,0.7794]
[1727701554049,4.49718,2636.5,2636.2,0.4001]
[1727701554250,0.37927,2636.5,2636.4,0.37927]
[1727701554451,1.55826,2636.6,2636.5,0.37927]
[1727701554756,1.55826,2636.6,2636.2,1.34838]
[1727701554757,1.55827,2636.6,2636.3,0.3793]
[1727701554960,0.37928,2636.4,2636.3,0.3793]
[1727701555860,0.37928,2636.5,2636.4,0.37927]
[1727701556152,1.5536,2636.6,2636.2,0.4001]
[1727701556657,0.37927,2636.5,2636.4,0.37927]
[1727701558246,0.3746,2636.6,2636.2,0.4001]
[1727701558446,0.75387,2636.6,2636.5,0.37927]
[1727701558650,0.37929,2636.4,2636.3,0.37928]
[1727701560566,0.3793,2636.3,2636.2,0.7794]
[1727701560859,0.37931,2636.2,2636.1,0.4033]
[1727701561157,0.3838,2636.2,2635.9,0.3982]
[1727701561354,0.37934,2636.0,2635.9,0.3982]
[1727701561555,0.37934,2636.0,2635.9,0.77755]
[1727701561860,0.37934,2636.0,2635.9,4.1918]
[1727701562053,0.37934,2636.0,2635.9,0.77755]
[1727701562449,3.5916,2636.2,2635.9,4.1918]
[1727701562756,3.5916,2636.2,2635.9,0.3982]
[1727701563055,0.37934,2636.1,2636.0,0.37933]
[1727701563655,0.37934,2636.1,2635.9,0.3982]
[1727701563656,3.5916,2636.2,2635.9,0.3982]
[1727701563856,0.37934,2636.0,2635.9,0.77754]
[1727701564053,0.37934,2636.0,2635.9,0.3982]
[1727701565059,0.37935,2635.9,2635.8,0.74436]
[1727701565265,0.37935,2635.9,2635.8,0.365]
[1727701565656,0.37935,2635.9,2635.8,0.37937]
[1727701566268,0.37937,2635.9,2635.8,0.37937]
[1727701568663,2.7442,2636.0,2635.7,0.3954]
[1727701568870,0.37935,2636.0,2635.9,0.37935]
[1727701569058,5.9616,2636.2,2635.7,0.3954]
[1727701569255,0.37935,2636.0,2635.9,0.37935]
[1727701570163,6.90989,2636.2,2636.1,0.37932]
[1727701570164,3.97092,2636.2,2636.1,0.37932]
[1727701570361,4.4508,2636.2,2636.1,0.37932]
[1727701570565,3.2078,2636.2,2636.1,0.37932]
[1727701571157,3.2078,2636.2,2636.1,1.16332]
[1727701571465,3.2078,2636.2,2636.1,4.95692]
[1727701571666,2.63843636,2636.2,2636.1,4.95692]
[1727701571860,0.37929,2636.4,2636.3,0.37929]
[1727701572057,3.31814,2636.6,2636.1,0.784]
[1727701572259,0.94818,2636.5,2636.1,0.784]
[1727701572471,0.37929,2636.4,2636.3,0.37929]
[1727701573161,0.37929,2636.4,2636.1,0.784]
[1727701573162,0.37931,2636.2,2636.1,0.784]
[1727701573463,0.37934,2636.0,2635.9,3.2078]
[1727701574371,2.37,2636.2,2635.8,0.3997]
[1727701574667,3.13375,2635.9,2635.8,0.3997]
[1727701575569,2.7544,2635.9,2635.8,0.77907]
[1727701575962,2.7544,2635.9,2635.8,0.3997]
[1727701576160,2.7544,2635.9,2635.8,0.77907]
[1727701576667,3.13375,2635.9,2635.8,0.3997]
[1727701576862,3.13375,2635.9,2635.8,0.77907]
[1727701577064,2.7544,2635.9,2635.8,0.77907]
[1727701577465,3.13375,2635.9,2635.8,0.3997]
[1727701577669,2.7544,2635.9,2635.8,0.77907]
[1727701577867,2.7544,2635.9,2635.8,0.3997]
[1727701578269,2.7544,2635.9,2635.8,0.77907]
[1727701578470,3.13375,2635.9,2635.8,0.3997]
[1727701579369,3.13375,2635.9,2635.7,1.15068]
[1727701579874,2.7544,2635.9,2635.7,1.15068]
[1727701580170,3.13375,2635.9,2635.7,1.15068]
[1727701580869,2.7544,2635.9,2635.8,0.37937]
[1727701581077,2.37,2636.1,2635.7,0.7713]
[1727701581270,0.37934,2636.0,2635.7,0.7713]
[1727701581571,0.37934,2636.0,2635.8,0.37936]
[1727701581772,0.37934,2636.0,2635.9,0.3742]
[1727701585267,0.37934,2636.0,2635.9,0.75355]
[1727701585468,0.37933,2636.1,2636.0,0.37933]
[1727701586470,0.37934,2636.1,2636.0,0.37933]
[1727701587774,0.37928,2636.5,2636.2,0.37931]
[1727701587973,0.37928,2636.4,2636.3,0.3937]
[1727701589576,2.74928,2636.4,2636.3,0.3937]
[1727701589777,2.74928,2636.4,2636.3,0.773]
[1727701591477,2.37,2636.4,2636.3,0.773]
[1727701591776,2.74928,2636.4,2636.3,0.773]
[1727701591979,2.74928,2636.4,2636.3,1.76707745]
[1727701593473,2.74928,2636.4,2636.3,0.773]
[1727701595477,2.74928,2636.4,2636.3,0.3937]
[1727701596280,2.74928,2636.4,2636.3,0.773]
[1727701597776,2.74928,2636.4,2636.3,0.3793]
[1727701598977,0.37932,2636.1,2636.0,0.3901]
[1727701599180,2.74932,2636.1,2636.0,0.76944]
[1727701600082,2.74932,2636.1,2636.0,0.3901]
[1727701600780,3.14882,2636.1,2636.0,0.3901]
[1727701601679,3.14882,2636.1,2636.0,0.76944]
[1727701601881,3.14882,2636.1,2636.0,0.3901]
[1727701602478,9.7709,2636.1,2635.7,0.99407745]
[1727701602678,9.7709,2636.1,2635.7,0.37937]
[1727701602679,2.74937,2635.8,2635.7,0.37937]
[1727701603489,2.74937,2635.8,2635.6,0.396]
[1727701603882,0.3652,2635.7,2635.6,0.396]
[1727701604084,0.3652,2635.7,2635.5,3.2078]
[1727701604285,0.3794,2635.6,2635.5,3.2078]
[1727701604485,0.3652,2635.7,2635.5,3.2078]
[1727701604686,0.3652,2635.7,2635.5,3.5872]
[1727701604986,0.3652,2635.7,2635.5,3.2078]
[1727701605188,0.74459,2635.7,2635.5,3.58721]